[Event "December 12 Early 2023"]
[Site "https://www.chess.com"]
[Date "2023.12.12"]
[Round "9"]
[White "Ernst, Luca"]
[Black "Dinu, Dumitru-Daniel"]
[Result "0-1"]
[Board "94"]
[TimeControl "180+1"]
[WhiteFideId "45117055"]
[BlackFideId "1208403"]
[WhiteElo "2342"]
[BlackElo "2508"]
[WhiteTeam "FRA"]
[BlackTeam "ROU"]
[WhiteClock "0:00:00"]
[BlackClock "0:00:05"]

1. Nf3 {[%clk 0:02:56]}  Nf6 {[%clk 0:02:59]} 2. c4 {[%clk 0:02:54]}  e6 {[%clk 0:02:59]} 3. Nc3 {[%clk 0:02:54]}  Bb4 {[%clk 0:02:49]} 4. Qb3 {[%clk 0:02:54]}  c5 {[%clk 0:02:36]} 5. g4 {[%clk 0:02:52]}  b6 {[%clk 0:02:26]} 6. g5 {[%clk 0:02:51]}  Ng8 {[%clk 0:02:22]} 7. Nb5 {[%clk 0:02:43]}  d6 {[%clk 0:02:14]} 8. a3 {[%clk 0:02:43]}  Ba5 {[%clk 0:02:13]} 9. Qd3 {[%clk 0:02:43]}  d5 {[%clk 0:01:50]} 10. cxd5 {[%clk 0:02:08]}  Ba6 {[%clk 0:01:49]} 11. b4 {[%clk 0:01:57]}  Qd7 {[%clk 0:01:36]} 12. e4 {[%clk 0:01:50]}  cxb4 {[%clk 0:01:30]} 13. axb4 {[%clk 0:01:30]}  Bxb4 {[%clk 0:01:30]} 14. Bb2 {[%clk 0:01:29]}  f6 {[%clk 0:01:11]} 15. Nfd4 {[%clk 0:01:14]}  exd5 {[%clk 0:00:53]} 16. Bh3 {[%clk 0:01:12]}  Qe7 {[%clk 0:00:47]} 17. Nf5 {[%clk 0:00:55]}  dxe4 {[%clk 0:00:30]} 18. Qc4 {[%clk 0:00:33]}  Bxd2+ {[%clk 0:00:12]} 19. Kxd2 {[%clk 0:00:24]}  Qd7+ {[%clk 0:00:12]} 20. Nbd6+ {[%clk 0:00:22]}  Kf8 {[%clk 0:00:11]} 21. Rxa6 {[%clk 0:00:16]}  Nxa6 {[%clk 0:00:11]} 22. Qxa6 {[%clk 0:00:05]}  Ne7 {[%clk 0:00:11]} 23. Ba3 {[%clk 0:00:03]}  Rd8 {[%clk 0:00:08]} 24. Nxe7 {[%clk 0:00:02]}  Qxe7 {[%clk 0:00:08]} 25. Qb7 {[%clk 0:00:01]}  Qxb7 {[%clk 0:00:06]} 26. Ke2 {[%clk 0:00:02]}  Qe7 {[%clk 0:00:05]} 27. Nc4 {[%clk 0:00:02]}  Rd3 {[%clk 0:00:04]} 28. Bxe7+ {[%clk 0:00:01]}  Kxe7 {[%clk 0:00:05]} 29. gxf6+ {[%clk 0:00:02]}  gxf6 {[%clk 0:00:05]} 30. Re1 {[%clk 0:00:02]}  Rxh3 {[%clk 0:00:05]} 31. Nd2 {[%clk 0:00:02]}  f5 {[%clk 0:00:05]} 32. f3 {[%clk 0:00:03]}  Rxh2+ {[%clk 0:00:05]} 33. Ke3 {[%clk 0:00:03]}  Rd8 {[%clk 0:00:05]} 34. fxe4 {[%clk 0:00:00]}  Rdxd2 {[%clk 0:00:05]} 0-1

[Event "December 12 Early 2023"]
[Site "https://www.chess.com"]
[Date "2023.12.12"]
[Round "9"]
[White "Yelisieiev, Yevhenii"]
[Black "Aalto, Patrik"]
[Result "1-0"]
[Board "100"]
[TimeControl "180+1"]
[WhiteFideId "14139642"]
[BlackFideId "510726"]
[WhiteElo "2558"]
[BlackElo "2447"]
[WhiteTeam "GER"]
[BlackTeam "FIN"]
[WhiteClock "0:00:35"]
[BlackClock "0:00:00"]

1. d4 {[%clk 0:03:00]}  Nf6 {[%clk 0:02:59]} 2. Nf3 {[%clk 0:03:01]}  d5 {[%clk 0:02:59]} 3. e3 {[%clk 0:03:01]}  Bf5 {[%clk 0:02:57]} 4. Bd3 {[%clk 0:03:01]}  Bxd3 {[%clk 0:02:56]} 5. Qxd3 {[%clk 0:03:02]}  e6 {[%clk 0:02:56]} 6. O-O {[%clk 0:03:03]}  c5 {[%clk 0:02:57]} 7. b3 {[%clk 0:02:59]}  Nc6 {[%clk 0:02:55]} 8. Bb2 {[%clk 0:02:59]}  cxd4 {[%clk 0:02:55]} 9. exd4 {[%clk 0:02:59]}  Bd6 {[%clk 0:02:54]} 10. Nbd2 {[%clk 0:02:57]}  O-O {[%clk 0:02:54]} 11. Ne5 {[%clk 0:02:57]}  Nb4 {[%clk 0:02:45]} 12. Qh3 {[%clk 0:02:35]}  Nxc2 {[%clk 0:02:43]} 13. Rac1 {[%clk 0:02:34]}  Rc8 {[%clk 0:02:42]} 14. f4 {[%clk 0:02:03]}  Ne4 {[%clk 0:02:13]} 15. Nxe4 {[%clk 0:01:54]}  dxe4 {[%clk 0:02:14]} 16. Nc4 {[%clk 0:01:54]}  Nb4 {[%clk 0:02:07]} 17. Ba3 {[%clk 0:01:49]}  Be7 {[%clk 0:02:00]} 18. Qe3 {[%clk 0:01:31]}  Nd3 {[%clk 0:01:36]} 19. Bxe7 {[%clk 0:01:19]}  Qxe7 {[%clk 0:01:37]} 20. Rcd1 {[%clk 0:01:09]}  f5 {[%clk 0:01:37]} 21. Kh1 {[%clk 0:01:05]}  b5 {[%clk 0:01:36]} 22. Ne5 {[%clk 0:01:04]}  Nxe5 {[%clk 0:01:36]} 23. dxe5 {[%clk 0:01:03]}  Rfd8 {[%clk 0:01:37]} 24. Rxd8+ {[%clk 0:01:00]}  Rxd8 {[%clk 0:01:34]} 25. Rc1 {[%clk 0:01:00]}  Rd3 {[%clk 0:01:25]} 26. Qe1 {[%clk 0:01:00]}  e3 {[%clk 0:01:15]} 27. h3 {[%clk 0:00:58]}  Qb7 {[%clk 0:01:06]} 28. Rc2 {[%clk 0:00:49]}  Qd5 {[%clk 0:00:56]} 29. Rc8+ {[%clk 0:00:35]}  Kf7 {[%clk 0:00:00]} 30. Rc7+ {[%clk 0:00:35]} 1-0

[Event "December 12 Early 2023"]
[Site "https://www.chess.com"]
[Date "2023.12.12"]
[Round "9"]
[White "Munoz Sanchez, Miguel"]
[Black "Kotlyar, Kirill"]
[Result "0-1"]
[Board "102"]
[TimeControl "180+1"]
[WhiteFideId "3600734"]
[BlackFideId "24145599"]
[WhiteElo "2349"]
[BlackElo "2548"]
[WhiteTeam "ECU"]
[BlackTeam "RUS"]
[WhiteClock "0:00:01"]
[BlackClock "0:00:10"]

1. Nf3 {[%clk 0:02:54]}  Nf6 {[%clk 0:02:59]} 2. g3 {[%clk 0:02:55]}  g6 {[%clk 0:03:00]} 3. Bg2 {[%clk 0:02:55]}  Bg7 {[%clk 0:03:00]} 4. O-O {[%clk 0:02:55]}  O-O {[%clk 0:03:01]} 5. c4 {[%clk 0:02:56]}  c6 {[%clk 0:03:00]} 6. Nc3 {[%clk 0:02:55]}  d5 {[%clk 0:03:00]} 7. cxd5 {[%clk 0:02:55]}  cxd5 {[%clk 0:03:01]} 8. d4 {[%clk 0:02:55]}  Ne4 {[%clk 0:03:01]} 9. Bf4 {[%clk 0:02:53]}  Nxc3 {[%clk 0:02:46]} 10. bxc3 {[%clk 0:02:54]}  Nc6 {[%clk 0:02:46]} 11. h4 {[%clk 0:02:46]}  Bf5 {[%clk 0:02:45]} 12. Nd2 {[%clk 0:02:41]}  Rc8 {[%clk 0:02:44]} 13. e4 {[%clk 0:02:35]}  dxe4 {[%clk 0:02:42]} 14. Nxe4 {[%clk 0:02:35]}  e5 {[%clk 0:02:33]} 15. Bg5 {[%clk 0:02:30]}  Qb6 {[%clk 0:02:17]} 16. Nd6 {[%clk 0:02:25]}  Rb8 {[%clk 0:02:07]} 17. Nxf5 {[%clk 0:02:24]}  gxf5 {[%clk 0:02:06]} 18. d5 {[%clk 0:02:21]}  Na5 {[%clk 0:02:00]} 19. Rb1 {[%clk 0:02:16]}  Qd6 {[%clk 0:01:56]} 20. Qd3 {[%clk 0:01:43]}  Rbc8 {[%clk 0:01:45]} 21. Rfc1 {[%clk 0:01:35]}  b6 {[%clk 0:01:40]} 22. c4 {[%clk 0:01:34]}  Nb7 {[%clk 0:01:36]} 23. Qxf5 {[%clk 0:01:33]}  Nc5 {[%clk 0:01:27]} 24. h5 {[%clk 0:01:29]}  h6 {[%clk 0:01:25]} 25. Be3 {[%clk 0:01:27]}  Rfe8 {[%clk 0:01:06]} 26. Rb5 {[%clk 0:01:18]}  a6 {[%clk 0:00:35]} 27. Rb2 {[%clk 0:01:04]}  Nd7 {[%clk 0:00:36]} 28. Rcb1 {[%clk 0:00:53]}  Rb8 {[%clk 0:00:33]} 29. Be4 {[%clk 0:00:47]}  Nc5 {[%clk 0:00:28]} 30. Qh7+ {[%clk 0:00:46]}  Kf8 {[%clk 0:00:29]} 31. f3 {[%clk 0:00:24]}  Rec8 {[%clk 0:00:22]} 32. Rf2 {[%clk 0:00:22]}  Nxe4 {[%clk 0:00:20]} 33. fxe4 {[%clk 0:00:22]}  Rxc4 {[%clk 0:00:18]} 34. Rbf1 {[%clk 0:00:21]}  Rb7 {[%clk 0:00:18]} 35. Qf5 {[%clk 0:00:17]}  Rcc7 {[%clk 0:00:17]} 36. g4 {[%clk 0:00:17]}  Kg8 {[%clk 0:00:14]} 37. g5 {[%clk 0:00:17]}  hxg5 {[%clk 0:00:15]} 38. Bxg5 {[%clk 0:00:18]}  b5 {[%clk 0:00:14]} 39. Rg2 {[%clk 0:00:18]}  Kh8 {[%clk 0:00:14]} 40. h6 {[%clk 0:00:17]}  Bxh6 {[%clk 0:00:11]} 41. Bf6+ {[%clk 0:00:17]}  Bg7 {[%clk 0:00:09]} 42. Bxg7+ {[%clk 0:00:17]}  Kg8 {[%clk 0:00:10]} 43. Bf6+ {[%clk 0:00:15]}  Kf8 {[%clk 0:00:11]} 44. Rg8+ {[%clk 0:00:08]}  Kxg8 {[%clk 0:00:10]} 45. Qg5+ {[%clk 0:00:08]}  Kf8 {[%clk 0:00:10]} 46. Qg7+ {[%clk 0:00:09]}  Ke8 {[%clk 0:00:10]} 47. Qg8+ {[%clk 0:00:09]}  Qf8 {[%clk 0:00:11]} 48. Qg4 {[%clk 0:00:07]}  Rd7 {[%clk 0:00:10]} 49. Rc1 {[%clk 0:00:06]}  Rbc7 {[%clk 0:00:11]} 50. Rc6 {[%clk 0:00:04]}  Rxc6 {[%clk 0:00:10]} 51. dxc6 {[%clk 0:00:05]}  Qc5+ {[%clk 0:00:10]} 52. Kg2 {[%clk 0:00:04]}  Rd2+ {[%clk 0:00:11]} 53. Kh3 {[%clk 0:00:05]}  Qe3+ {[%clk 0:00:08]} 54. Qg3 {[%clk 0:00:04]}  Qxg3+ {[%clk 0:00:08]} 55. Kxg3 {[%clk 0:00:05]}  Rc2 {[%clk 0:00:08]} 56. Bxe5 {[%clk 0:00:05]}  Rxc6 {[%clk 0:00:08]} 57. Kf4 {[%clk 0:00:05]}  Kd7 {[%clk 0:00:09]} 58. Bd4 {[%clk 0:00:05]}  Rc2 {[%clk 0:00:10]} 59. Kf5 {[%clk 0:00:01]}  Rxa2 {[%clk 0:00:10]} 0-1

[Event "December 12 Early 2023"]
[Site "https://www.chess.com"]
[Date "2023.12.12"]
[Round "9"]
[White "Storn, Justin"]
[Black "Asish Panda"]
[Result "0-1"]
[Board "103"]
[TimeControl "180+1"]
[WhiteFideId "30922720"]
[BlackFideId "45012458"]
[WhiteElo "2347"]
[BlackElo "2532"]
[WhiteTeam "USA"]
[BlackTeam "IND"]
[WhiteClock "0:00:02"]
[BlackClock "0:00:04"]

1. Nf3 {[%clk 0:02:49]}  d5 {[%clk 0:02:59]} 2. g3 {[%clk 0:02:47]}  Nf6 {[%clk 0:02:59]} 3. Bg2 {[%clk 0:02:47]}  e6 {[%clk 0:02:59]} 4. O-O {[%clk 0:02:47]}  Be7 {[%clk 0:02:59]} 5. d4 {[%clk 0:02:47]}  O-O {[%clk 0:03:00]} 6. c4 {[%clk 0:02:48]}  b6 {[%clk 0:02:59]} 7. Nc3 {[%clk 0:02:43]}  Bb7 {[%clk 0:02:56]} 8. cxd5 {[%clk 0:02:43]}  exd5 {[%clk 0:02:56]} 9. Ne5 {[%clk 0:02:40]}  Nbd7 {[%clk 0:02:54]} 10. Qa4 {[%clk 0:02:41]}  Nb8 {[%clk 0:02:22]} 11. Bg5 {[%clk 0:02:32]}  a6 {[%clk 0:02:20]} 12. Rfd1 {[%clk 0:02:22]}  Ne4 {[%clk 0:02:12]} 13. Bxe7 {[%clk 0:02:21]}  Qxe7 {[%clk 0:02:11]} 14. Qb3 {[%clk 0:01:52]}  Nxc3 {[%clk 0:02:01]} 15. bxc3 {[%clk 0:01:53]}  Rd8 {[%clk 0:01:59]} 16. Qc2 {[%clk 0:01:42]}  Nd7 {[%clk 0:01:57]} 17. Nd3 {[%clk 0:01:37]}  c5 {[%clk 0:01:42]} 18. c4 {[%clk 0:01:31]}  dxc4 {[%clk 0:01:32]} 19. Bxb7 {[%clk 0:01:29]}  cxd3 {[%clk 0:01:33]} 20. Rxd3 {[%clk 0:01:30]}  Rab8 {[%clk 0:01:33]} 21. Bxa6 {[%clk 0:01:09]}  cxd4 {[%clk 0:01:32]} 22. Rxd4 {[%clk 0:01:06]}  Nc5 {[%clk 0:01:31]} 23. Rxd8+ {[%clk 0:01:06]}  Rxd8 {[%clk 0:01:31]} 24. Bb5 {[%clk 0:01:05]}  h5 {[%clk 0:01:27]} 25. h4 {[%clk 0:01:02]}  Ne6 {[%clk 0:01:14]} 26. e3 {[%clk 0:00:53]}  Nc5 {[%clk 0:01:09]} 27. Rd1 {[%clk 0:00:53]}  g6 {[%clk 0:01:07]} 28. a4 {[%clk 0:00:46]}  Rd6 {[%clk 0:01:00]} 29. Bc4 {[%clk 0:00:26]}  Rf6 {[%clk 0:00:48]} 30. Rd4 {[%clk 0:00:25]}  Qe5 {[%clk 0:00:43]} 31. Rf4 {[%clk 0:00:18]}  Rd6 {[%clk 0:00:36]} 32. Bxf7+ {[%clk 0:00:16]}  Kg7 {[%clk 0:00:34]} 33. Bc4 {[%clk 0:00:15]}  Qa1+ {[%clk 0:00:29]} 34. Kg2 {[%clk 0:00:13]}  Qxa4 {[%clk 0:00:16]} 35. Rf7+ {[%clk 0:00:11]}  Kh6 {[%clk 0:00:13]} 36. Qc1 {[%clk 0:00:11]}  Ne4 {[%clk 0:00:08]} 37. Qb2 {[%clk 0:00:09]}  Nf6 {[%clk 0:00:04]} 38. Rxf6 {[%clk 0:00:07]}  Qc6+ {[%clk 0:00:03]} 39. Kh2 {[%clk 0:00:04]}  Rxf6 {[%clk 0:00:03]} 40. Bf1 {[%clk 0:00:04]}  Qf3 {[%clk 0:00:03]} 41. Kg1 {[%clk 0:00:04]}  b5 {[%clk 0:00:04]} 42. Bg2 {[%clk 0:00:04]}  Qd1+ {[%clk 0:00:04]} 43. Kh2 {[%clk 0:00:04]}  Qd6 {[%clk 0:00:03]} 44. Qxb5 {[%clk 0:00:03]}  Rxf2 {[%clk 0:00:03]} 45. Qg5+ {[%clk 0:00:03]}  Kg7 {[%clk 0:00:04]} 46. e4 {[%clk 0:00:02]}  Qf6 {[%clk 0:00:03]} 47. Qxf6+ {[%clk 0:00:02]}  Kxf6 {[%clk 0:00:04]} 48. Kg1 {[%clk 0:00:02]}  Rd2 {[%clk 0:00:04]} 49. Bf3 {[%clk 0:00:02]}  Ke5 {[%clk 0:00:03]} 50. Kf1 {[%clk 0:00:03]}  Kd4 {[%clk 0:00:03]} 51. Ke1 {[%clk 0:00:03]}  Ke3 {[%clk 0:00:03]} 52. Bd1 {[%clk 0:00:02]}  Rg2 {[%clk 0:00:04]} 53. e5 {[%clk 0:00:02]}  Rg1# {[%clk 0:00:04]} 0-1

[Event "December 12 Early 2023"]
[Site "https://www.chess.com"]
[Date "2023.12.12"]
[Round "9"]
[White "Play, Gilles"]
[Black "IranianCheetah"]
[Result "1-0"]
[Board "104"]
[TimeControl "180+1"]
[WhiteFideId "45130892"]
[WhiteElo "2513"]
[BlackElo "2344"]
[WhiteTeam "FRA"]
[WhiteClock "0:02:16"]
[BlackClock "0:00:44"]

1. e4 {[%clk 0:02:59]}  e5 {[%clk 0:03:00]} 2. Bc4 {[%clk 0:02:58]}  Nf6 {[%clk 0:02:59]} 3. d4 {[%clk 0:02:58]}  exd4 {[%clk 0:02:34]} 4. Nf3 {[%clk 0:02:57]}  Nc6 {[%clk 0:02:27]} 5. O-O {[%clk 0:02:55]}  Nxe4 {[%clk 0:02:26]} 6. Re1 {[%clk 0:02:52]}  d5 {[%clk 0:02:25]} 7. Bxd5 {[%clk 0:02:51]}  Qxd5 {[%clk 0:02:26]} 8. Nc3 {[%clk 0:02:50]}  Qa5 {[%clk 0:02:27]} 9. Nxe4 {[%clk 0:02:49]}  Be6 {[%clk 0:02:27]} 10. Bg5 {[%clk 0:02:47]}  h6 {[%clk 0:02:20]} 11. Bh4 {[%clk 0:02:42]}  Be7 {[%clk 0:02:10]} 12. Bxe7 {[%clk 0:02:40]}  Kxe7 {[%clk 0:02:10]} 13. Nxd4 {[%clk 0:02:38]}  Nxd4 {[%clk 0:02:07]} 14. Qxd4 {[%clk 0:02:39]}  Kf8 {[%clk 0:01:52]} 15. Nc5 {[%clk 0:02:33]}  Re8 {[%clk 0:01:21]} 16. Nxb7 {[%clk 0:02:18]}  Qb6 {[%clk 0:01:14]} 17. Nc5 {[%clk 0:02:17]}  h5 {[%clk 0:00:44]} 18. Rxe6 {[%clk 0:02:16]} 1-0

[Event "December 12 Early 2023"]
[Site "https://www.chess.com"]
[Date "2023.12.12"]
[Round "9"]
[White "Iljin, Timofey"]
[Black "Tuleyeva-Aketayeva, Dana"]
[Result "1-0"]
[Board "105"]
[TimeControl "180+1"]
[WhiteFideId "14110180"]
[BlackFideId "13701932"]
[WhiteElo "2497"]
[BlackElo "2325"]
[WhiteTeam "UKR"]
[BlackTeam "KAZ"]
[WhiteClock "0:01:33"]
[BlackClock "0:00:00"]

1. e4 {[%clk 0:03:00]}  c5 {[%clk 0:02:56]} 2. c3 {[%clk 0:03:01]}  d5 {[%clk 0:02:49]} 3. exd5 {[%clk 0:03:02]}  Qxd5 {[%clk 0:02:50]} 4. d4 {[%clk 0:03:03]}  Nc6 {[%clk 0:02:46]} 5. Nf3 {[%clk 0:03:02]}  Bg4 {[%clk 0:02:45]} 6. Be2 {[%clk 0:03:01]}  Nf6 {[%clk 0:02:42]} 7. O-O {[%clk 0:03:00]}  e6 {[%clk 0:02:40]} 8. Be3 {[%clk 0:03:00]}  cxd4 {[%clk 0:02:32]} 9. cxd4 {[%clk 0:02:57]}  Be7 {[%clk 0:02:32]} 10. Nc3 {[%clk 0:02:58]}  Qd7 {[%clk 0:02:29]} 11. h3 {[%clk 0:02:55]}  Bh5 {[%clk 0:02:05]} 12. g4 {[%clk 0:02:55]}  Bg6 {[%clk 0:02:04]} 13. Ne5 {[%clk 0:02:56]}  Nxe5 {[%clk 0:02:00]} 14. dxe5 {[%clk 0:02:57]}  Qxd1 {[%clk 0:02:00]} 15. Rfxd1 {[%clk 0:02:57]}  Ne4 {[%clk 0:01:51]} 16. Bb5+ {[%clk 0:02:43]}  Kf8 {[%clk 0:01:49]} 17. Nxe4 {[%clk 0:02:40]}  Bxe4 {[%clk 0:01:47]} 18. Rd7 {[%clk 0:02:38]}  h5 {[%clk 0:01:42]} 19. Rad1 {[%clk 0:02:24]}  hxg4 {[%clk 0:01:40]} 20. Rxe7 {[%clk 0:02:13]}  Rxh3 {[%clk 0:01:35]} 21. f3 {[%clk 0:01:52]}  Rg3+ {[%clk 0:01:00]} 22. Kf2 {[%clk 0:01:46]}  Rxf3+ {[%clk 0:00:59]} 23. Ke2 {[%clk 0:01:46]}  Rxe3+ {[%clk 0:00:03]} 24. Kxe3 {[%clk 0:01:46]}  Kxe7 {[%clk 0:00:03]} 25. Rd7+ {[%clk 0:01:46]}  Kf8 {[%clk 0:00:03]} 26. Kxe4 {[%clk 0:01:47]}  g5 {[%clk 0:00:02]} 27. Rxb7 {[%clk 0:01:46]}  Rd8 {[%clk 0:00:03]} 28. Bd7 {[%clk 0:01:41]}  Ke7 {[%clk 0:00:01]} 29. Bc6+ {[%clk 0:01:37]}  Kf8 {[%clk 0:00:01]} 30. Rxa7 {[%clk 0:01:38]}  Rd2 {[%clk 0:00:01]} 31. Ra8+ {[%clk 0:01:36]}  Kg7 {[%clk 0:00:01]} 32. Rb8 {[%clk 0:01:37]}  Rf2 {[%clk 0:00:00]} 33. Rb3 {[%clk 0:01:33]} 1-0

[Event "December 12 Early 2023"]
[Site "https://www.chess.com"]
[Date "2023.12.12"]
[Round "9"]
[White "Quirke, Jeffrey"]
[Black "Lehtosaari, Mauri"]
[Result "0-1"]
[Board "107"]
[TimeControl "180+1"]
[WhiteFideId "2013029"]
[BlackFideId "501999"]
[WhiteElo "2182"]
[BlackElo "2478"]
[WhiteTeam "USA"]
[BlackTeam "FIN"]
[WhiteClock "0:00:01"]
[BlackClock "0:01:00"]

1. e4 {[%clk 0:03:00]}  d5 {[%clk 0:02:50]} 2. exd5 {[%clk 0:02:58]}  Qxd5 {[%clk 0:02:50]} 3. Nc3 {[%clk 0:02:58]}  Qd8 {[%clk 0:02:50]} 4. Nf3 {[%clk 0:02:52]}  Nf6 {[%clk 0:02:51]} 5. g3 {[%clk 0:02:49]}  Bg4 {[%clk 0:02:47]} 6. Bg2 {[%clk 0:02:49]}  e6 {[%clk 0:02:45]} 7. h3 {[%clk 0:02:50]}  Bxf3 {[%clk 0:02:45]} 8. Bxf3 {[%clk 0:02:49]}  c6 {[%clk 0:02:45]} 9. O-O {[%clk 0:02:45]}  Be7 {[%clk 0:02:45]} 10. d4 {[%clk 0:02:37]}  O-O {[%clk 0:02:43]} 11. Ne4 {[%clk 0:02:37]}  Nbd7 {[%clk 0:02:37]} 12. Re1 {[%clk 0:02:33]}  Nxe4 {[%clk 0:02:30]} 13. Bxe4 {[%clk 0:02:32]}  Nf6 {[%clk 0:02:28]} 14. Bg2 {[%clk 0:02:32]}  a5 {[%clk 0:02:24]} 15. a4 {[%clk 0:02:28]}  Rc8 {[%clk 0:02:19]} 16. c3 {[%clk 0:02:12]}  c5 {[%clk 0:02:19]} 17. Bxb7 {[%clk 0:02:06]}  Rb8 {[%clk 0:02:19]} 18. Bg2 {[%clk 0:02:03]}  cxd4 {[%clk 0:02:19]} 19. Qxd4 {[%clk 0:01:58]}  Qxd4 {[%clk 0:02:19]} 20. cxd4 {[%clk 0:01:57]}  Rfd8 {[%clk 0:02:17]} 21. Bd2 {[%clk 0:01:46]}  Bb4 {[%clk 0:01:59]} 22. Bf4 {[%clk 0:01:42]}  Rbc8 {[%clk 0:01:56]} 23. Rec1 {[%clk 0:01:35]}  Nd5 {[%clk 0:01:55]} 24. Be3 {[%clk 0:01:27]}  Nxe3 {[%clk 0:01:53]} 25. fxe3 {[%clk 0:01:27]}  Bd2 {[%clk 0:01:53]} 26. Rxc8 {[%clk 0:01:18]}  Bxe3+ {[%clk 0:01:53]} 27. Kf1 {[%clk 0:01:18]}  Rxc8 {[%clk 0:01:54]} 28. d5 {[%clk 0:01:17]}  e5 {[%clk 0:01:33]} 29. Rd1 {[%clk 0:00:43]}  Bd4 {[%clk 0:01:31]} 30. Be4 {[%clk 0:00:30]}  g6 {[%clk 0:01:28]} 31. b3 {[%clk 0:00:29]}  f5 {[%clk 0:01:23]} 32. Bd3 {[%clk 0:00:27]}  Kf8 {[%clk 0:01:23]} 33. Bc4 {[%clk 0:00:27]}  Ke7 {[%clk 0:01:22]} 34. Ke2 {[%clk 0:00:26]}  Kd6 {[%clk 0:01:22]} 35. Kf3 {[%clk 0:00:22]}  e4+ {[%clk 0:01:20]} 36. Ke2 {[%clk 0:00:22]}  Be5 {[%clk 0:01:19]} 37. g4 {[%clk 0:00:21]}  f4 {[%clk 0:01:20]} 38. Rf1 {[%clk 0:00:18]}  g5 {[%clk 0:01:20]} 39. Rh1 {[%clk 0:00:17]}  Bd4 {[%clk 0:01:15]} 40. h4 {[%clk 0:00:16]}  f3+ {[%clk 0:01:16]} 41. Ke1 {[%clk 0:00:14]}  h6 {[%clk 0:01:09]} 42. hxg5 {[%clk 0:00:14]}  hxg5 {[%clk 0:01:09]} 43. Rh6+ {[%clk 0:00:13]}  Ke5 {[%clk 0:01:09]} 44. d6 {[%clk 0:00:10]}  Rd8 {[%clk 0:01:07]} 45. Bb5 {[%clk 0:00:09]}  e3 {[%clk 0:00:59]} 46. d7 {[%clk 0:00:08]}  Bc3+ {[%clk 0:00:59]} 47. Kf1 {[%clk 0:00:06]}  e2+ {[%clk 0:00:58]} 48. Bxe2 {[%clk 0:00:06]}  fxe2+ {[%clk 0:00:59]} 49. Kxe2 {[%clk 0:00:06]}  Rxd7 {[%clk 0:00:59]} 50. Rg6 {[%clk 0:00:01]}  Kf4 {[%clk 0:01:00]} 0-1

[Event "December 12 Early 2023"]
[Site "https://www.chess.com"]
[Date "2023.12.12"]
[Round "9"]
[White "Tay, Junior"]
[Black "Zhuk, Valeriy"]
[Result "0-1"]
[Board "109"]
[TimeControl "180+1"]
[WhiteFideId "5800439"]
[BlackFideId "24151254"]
[WhiteElo "2494"]
[BlackElo "2363"]
[WhiteTeam "SGP"]
[BlackTeam "RUS"]
[WhiteClock "0:00:06"]
[BlackClock "0:00:16"]

1. e4 {[%clk 0:03:00]}  e6 {[%clk 0:02:47]} 2. Nf3 {[%clk 0:03:00]}  d5 {[%clk 0:02:47]} 3. Nc3 {[%clk 0:03:01]}  Nf6 {[%clk 0:02:45]} 4. e5 {[%clk 0:03:01]}  Nfd7 {[%clk 0:02:44]} 5. d4 {[%clk 0:03:02]}  c5 {[%clk 0:02:44]} 6. Bg5 {[%clk 0:03:02]}  Qb6 {[%clk 0:02:43]} 7. dxc5 {[%clk 0:03:02]}  Bxc5 {[%clk 0:02:41]} 8. Qd2 {[%clk 0:03:02]}  Bb4 {[%clk 0:02:02]} 9. O-O-O {[%clk 0:02:58]}  Nc6 {[%clk 0:01:54]} 10. Bf4 {[%clk 0:02:57]}  Qa5 {[%clk 0:01:37]} 11. Kb1 {[%clk 0:02:55]}  h6 {[%clk 0:01:30]} 12. h4 {[%clk 0:02:52]}  Nb6 {[%clk 0:01:24]} 13. a3 {[%clk 0:02:31]}  Bxc3 {[%clk 0:01:22]} 14. Qxc3 {[%clk 0:02:32]}  Qxc3 {[%clk 0:01:21]} 15. bxc3 {[%clk 0:02:33]}  Bd7 {[%clk 0:01:21]} 16. Nd4 {[%clk 0:02:20]}  a6 {[%clk 0:01:15]} 17. Bg3 {[%clk 0:02:11]}  Rc8 {[%clk 0:01:14]} 18. f4 {[%clk 0:02:07]}  Na5 {[%clk 0:01:10]} 19. Be1 {[%clk 0:01:59]}  Na4 {[%clk 0:01:09]} 20. Rh3 {[%clk 0:01:56]}  h5 {[%clk 0:00:53]} 21. Nb3 {[%clk 0:01:24]}  Nc4 {[%clk 0:00:51]} 22. Ka2 {[%clk 0:01:23]}  g6 {[%clk 0:00:51]} 23. f5 {[%clk 0:01:02]}  gxf5 {[%clk 0:00:51]} 24. Rg3 {[%clk 0:01:02]}  Ke7 {[%clk 0:00:46]} 25. Bxc4 {[%clk 0:00:55]}  Rxc4 {[%clk 0:00:43]} 26. Bd2 {[%clk 0:00:55]}  Rhc8 {[%clk 0:00:23]} 27. Bg5+ {[%clk 0:00:54]}  Ke8 {[%clk 0:00:23]} 28. Bf6 {[%clk 0:00:54]}  Bb5 {[%clk 0:00:24]} 29. Rg8+ {[%clk 0:00:48]}  Kd7 {[%clk 0:00:24]} 30. Rg7 {[%clk 0:00:48]}  Nxc3+ {[%clk 0:00:21]} 31. Ka1 {[%clk 0:00:42]}  Nxd1 {[%clk 0:00:22]} 32. Rxf7+ {[%clk 0:00:42]}  Kc6 {[%clk 0:00:22]} 33. Na5+ {[%clk 0:00:41]}  Kb6 {[%clk 0:00:22]} 34. Nxc4+ {[%clk 0:00:36]}  Rxc4 {[%clk 0:00:22]} 35. Re7 {[%clk 0:00:28]}  Rxc2 {[%clk 0:00:23]} 36. Rxe6+ {[%clk 0:00:27]}  Bc6 {[%clk 0:00:22]} 37. Bd8+ {[%clk 0:00:23]}  Kb5 {[%clk 0:00:22]} 38. Kb1 {[%clk 0:00:20]}  Re2 {[%clk 0:00:18]} 39. Bg5 {[%clk 0:00:16]}  Nc3+ {[%clk 0:00:18]} 40. Kc1 {[%clk 0:00:16]}  Kc4 {[%clk 0:00:19]} 41. Rf6 {[%clk 0:00:11]}  Kd3 {[%clk 0:00:18]} 42. Bd2 {[%clk 0:00:06]}  Rxd2 {[%clk 0:00:16]} 0-1